Cogmind - Beta 15 @@@ ROGUE MODE // 2025.08.17 @ 15:40:52 Player: Windjigo Result: Destroyed by QK-OJM(j) with Overtuned Pulse Rifle Performance ------------- Evolutions (0) 0 Regions Visited (3) 600 Robots Destroyed (22) 110 Value Destroyed (531) 531 Prototype IDs (6) 120 Alien Tech Used (0) 0 Bonus (800) 800 TOTAL SCORE: 2161 Bonus ------- Registered with UFD 300 Met Optimus in HQ 500 Cogmind --------- Core Integrity 0/250 Matter 200/300 Energy 67/100 System Corruption 0% Temperature Cool (18) Movement Core (550) Ox10 Location -9/Scraptown Parts ------- > --- POWER (1) -------- (None) > --- PROPULSION (2) --- (None) > --- UTILITY (2) ------ Medium Storage Unit Hacking Suite > --- WEAPON (2) ------- Magnetic Acceleration Cannon Voltaic Drivehammer > --- INVENTORY (10) --- Ion Engine Cooling System Advanced Sensor Array Advanced Signal Interpreter Layered Light Armor Plating Magnetic Acceleration Cannon Rocket Launcher Plasma Cutter Mace Peak State ------------ > --- POWER ------------ Ion Engine > --- PROPULSION ------- Xenon Bombardment Thruster Xenon Bombardment Thruster > --- UTILITY ---------- Large Storage Unit Hacking Suite > --- WEAPON ----------- Magnetic Acceleration Cannon Magnetic Acceleration Cannon > --- INVENTORY -------- Light Ion Engine Scrap Suit Improved Heat Sink Cooling System Medium Storage Unit Advanced Sensor Array Advanced Signal Interpreter Layered Light Armor Plating Focal Shield Shield Generator Field Recycling Unit Rocket Launcher Plasma Cutter Mace [Rating: 27] Favorites ----------- Power Ion Engine Engine Ion Engine Power Core Light Nuclear Core Propulsion Light Treads Treads Light Treads Wheel Wheel Flight Unit Xenon Bombardment Thruster Utility Hacking Suite Device Seismic Detector Storage Large Storage Unit Hackware Hacking Suite Weapon Magnetic Acceleration Cannon Ballistic Gun Light Assault Rifle Ballistic Cannon Magnetic Acceleration Cannon Special Weapon Mining Laser Impact Weapon Mace Build | -11 -10 -10 -9 ------- Run | Yrd Mat Sub Scr Slots Evolved . | . . . . Power . | . . . . Propulsion . | . . . . Utility . | . . . . Weapon . | . . . . Parts Attached 28 | 7 7 2 12 Power 4 | 1 3 . . Engine 3 | 1 2 . . Core 1 | . 1 . . Reactor . | . . . . Propulsion 9 | 2 . 1 6 Treads 5 | 2 . 1 2 Leg . | . . . . Wheel 1 | . . . 1 Hover . | . . . . Flight 3 | . . . 3 Utility 5 | 2 2 . 1 Device 1 | 1 . . . Storage 3 | 1 1 . 1 Processor . | . . . . Hackware 1 | . 1 . . Protection . | . . . . Artifact . | . . . . Weapon 10 | 2 2 1 5 Energy Gun . | . . . . Energy Cannon . | . . . . Ballistic Gun 3 | 2 . . 1 Ballistic Cannon 4 | . 2 . 2 Launcher . | . . . . Special Weapon 2 | . . 1 1 Impact Weapon 1 | . . . 1 Slashing Weapon . | . . . . Piercing Weapon . | . . . . Special Melee Weapon . | . . . . Unidentified Prototypes . | . . . . Parts Lost 6 | . 2 2 2 Power 1 | . 1 . . Propulsion 4 | . . 2 2 Utility 1 | . 1 . . Weapon . | . . . . Highest Loss Streak 2 | . 1 1 2 To Critical Strikes . | . . . . Average Backups 10 | 2 5 9 13 Power 1 | . 2 2 1 Propulsion . | . . . . Utility 5 | . 1 3 8 Weapon 2 | 1 2 3 3 Tool/Special . | . . . . Unused Backups 23 | . . 1 22 Power 1 | . . . 1 Propulsion . | . . . . Utility 13 | . . . 13 Weapon 8 | . . 1 7 Tool/Special 1 | . . . 1 Average Slot Usage (%) 95 | . 95 97 94 Engine 12 | . 10 14 12 Treads 17 | . 28 25 12 Wheel 2 | . . . 4 Flight 6 | . . . 10 Device 1 | . 7 . . Storage 14 | . 14 14 14 Hackware 11 | . 2 14 14 Ballistic Gun 4 | . 22 . . Ballistic Cannon 19 | . 5 25 22 Impact Weapon 1 | . . . 2 Peak Build Rating 27 | 7 10 10 27 Average Rating 15 | 5 7 9 20 On Entrance 6 | . 7 10 9 Naked Turns . | . . . . Heaviest Build 41 | 12 21 21 41 Greatest Support 40 | 40 40 40 40 Greatest Overweight (x) 10 | . . 1 10 Average Overweight (x) 1 | . . . 2 Largest Inventory Capacity 15 | 8 10 10 15 Average Capacity 12 | 7 8 10 13 Most Carried 15 | 5 9 10 15 Average Carried 11 | 2 5 9 13 Final Capacity 10 | 8 10 10 10 Final Carried 10 | 3 9 10 9 Class Distribution -------------------- 92% | Mutant 7% | Scavenger-Mutant Dominant Class ---------------- Mutant | -10/Materials Scavenger-Mutant | -10/Subcaves Mutant | -9/Scraptown Resources | -11 -10 -10 -9 ----------- Run | Yrd Mat Sub Scr Matter Collected 873 | 298 216 151 208 Remotely . | . . . . Salvage Created 670 | 140 411 55 64 Parts 51 | 13 30 5 3 Haulers Intercepted 1 | . 1 . . Recyclers Shooed 1 | 1 . . . Parts Field Recycled . | . . . . Retrieved Matter . | . . . . Parts Self-Destructed 9 | . . 9 . Prevented . | . . . . Kills | -11 -10 -10 -9 ------- Run | Yrd Mat Sub Scr Combat Hostiles Destroyed 14 | . 9 4 1 Guns 9 | . 9 . . Cannons 5 | . . 4 1 Classes Destroyed 10 | 2 6 1 1 Worker 1 | . 1 . . Tunneler 3 | 3 . . . Hauler 1 | . 1 . . Recycler 1 | 1 . . . Operator 1 | . 1 . . Watcher 1 | . 1 . . Swarmer 3 | . 3 . . Grunt 6 | . 6 . . Subdweller 4 | . . 4 . Scrapper 1 | . . . 1 Best Kill Streak 4 | 4 3 2 1 Combat Bots Only 3 | . 3 2 1 Max Kills in Single Turn 1 | 1 1 1 1 Gunslinging . | . . . . Exploded . | . . . . Melee . | . . . . Uniques/NPCs Destroyed . | . . . . Combat | -11 -10 -10 -9 -------- Run | Yrd Mat Sub Scr Hostile Shots Fired 97 | . 43 22 32 Missed 26 | . 11 4 11 Hits 71 | . 32 18 21 Projectile 71 | . 32 18 21 Critical Strikes 1 | . . . 1 Damage Taken 1233 | . 441 353 439 Core 264 | . 51 41 172 Absorbed by Shields . | . . . . Core Remaining (%) 100 | 100 . . . Volleys Fired 96 | 7 39 45 5 Largest 2 | 2 2 2 1 Hottest 100 | 40 60 100 44 Shots Fired 172 | 14 78 75 5 Gun 80 | 14 66 . . Cannon 77 | . 12 60 5 Launcher . | . . . . Special 15 | . . 15 . Kinetic 157 | 14 78 60 5 Thermal 15 | . . 15 . Explosive . | . . . . Electromagnetic . | . . . . Robot Hit Streak 19 | 4 7 19 12 Robot Miss Streak 5 | 1 5 2 . Penetration Max . | . . . . Secondary Targets 1 | . 1 . . Max Gunslinging Chain 1 | . 1 . . Shots Hit Robots 93 | 9 49 30 5 Core Hits 39 | 6 24 8 1 Critical Kills . | . . . . Critical Parts Destroyed . | . . . . Critical Strikes 4 | . . 3 1 Blast 4 | . . 3 1 Melee Attacks 1 | . . . 1 Impact 1 | . . . 1 Slashing . | . . . . Piercing . | . . . . Sneak Attacks . | . . . . Combat Hostiles . | . . . . Follow-up Attacks . | . . . . Damage Inflicted 1397 | 108 588 552 149 Guns 557 | 108 449 . . Cannons 840 | . 139 552 149 Explosions . | . . . . Melee . | . . . . Ramming . | . . . . Kinetic 1397 | 108 588 552 149 Thermal . | . . . . Explosive . | . . . . Electromagnetic . | . . . . Impact . | . . . . Slashing . | . . . . Piercing . | . . . . Highest Corruption . | . . . . Average Corruption . | . . . . Corruption Purged . | . . . . Corruption Blocked . | . . . . Overload Shots . | . . . . Overflow Damage . | . . . . Projectiles . | . . . . Explosions . | . . . . Melee . | . . . . Knockbacks 8 | . 1 5 2 Impact . | . . . . Kinetic 8 | . 1 5 2 Secondary . | . . . . Self-Inflicted Damage . | . . . . Shots . | . . . . Rammed . | . . . . Targets Rammed . | . . . . Kicked . | . . . . Crushed . | . . . . Highest Temperature 48 | . 21 . 48 Average Temperature 11 | . 7 . 28 Received Heat Transfer 484 | . 135 72 277 Siege Activations . | . . . . Martial Activations . | . . . . Shielding Activations . | . . . . Robots Disrupted . | . . . . Combat Hostiles . | . . . . Robots Corrupted . | . . . . Combat Hostiles . | . . . . Parts Fried . | . . . . Impact Corruptions . | . . . . Robots Melted . | . . . . Combat Hostiles . | . . . . Parts Melted . | . . . . Heat Transferred . | . . . . Parts Sabotaged . | . . . . Parts Stolen . | . . . . Parts Stripped . | . . . . Power Chain Reactions . | . . . . Alert | -11 -10 -10 -9 ------- Run | Yrd Mat Sub Scr Maximum Alert Level . | . . . . Low Security (%) 100 | 100 100 . . Level 1 . | . . . . Level 2 . | . . . . Level 3 . | . . . . Level 4 . | . . . . Level 5 . | . . . . High Security . | . . . . Max Security . | . . . . Peak Influence 88 | 10 88 . . Initial . | . . . . Average 17 | 1 18 . . Influence Increases 287 | 20 267 . . Destroy 0b10 Robot/C 180 | . 180 . . Destroy 0b10 Robot/NC 40 | 20 20 . . Destroy Leader 44 | . 44 . . Successful Hack 23 | . 23 . . Influence Decreases 287 | 20 267 . . Time Decay 267 | 20 247 . . Lost Part 20 | . 20 . . Squads Dispatched 1 | . 1 . . Investigation 1 | . 1 . . Extermination . | . . . . Reinforcement . | . . . . Assault . | . . . . Garrison . | . . . . Intercept . | . . . . Searches Triggered . | . . . . Construction Impeded . | . . . . Haulers Reinforced . | . . . . Active Scanning Responses . | . . . . Cargo Convoy Interrupts . | . . . . Stealth | -11 -10 -10 -9 --------- Run | Yrd Mat Sub Scr Distress Signals . | . . . . Communications Jammed . | . . . . Distress Signals . | . . . . Times Spotted 25 | . 15 4 6 Peak Tracking Total 3 | . 3 2 3 Tactical Retreats . | . . . . Traps | -11 -10 -10 -9 ------- Run | Yrd Mat Sub Scr Traps Triggered 1 | . 1 . . Indirectly . | . . . . Trap Hack Attempts . | . . . . Triggered . | . . . . Disarmed . | . . . . Reprogrammed 1 | . 1 . . Reused . | . . . . Traps Extracted . | . . . . Installed 1 | . . . 1 Triggered . | . . . . Machines | -11 -10 -10 -9 ---------- Run | Yrd Mat Sub Scr Machines Disabled 1 | . . . 1 Max in Single Turn 1 | . . . 1 Machines Repaired . | . . . . Machines Dismantled . | . . . . Machines Sabotaged . | . . . . Overloaded Fab Kills . | . . . . Hacking | -11 -10 -10 -9 --------- Run | Yrd Mat Sub Scr Machines Accessed 8 | . 5 . 3 Terminals 4 | . 4 . . Fabricators . | . . . . Repair Stations . | . . . . Recycling Units 1 | . 1 . . Scanalyzers . | . . . . Garrison Access . | . . . . Total Hacks 40 | . 17 . 23 Successful 29 | . 6 . 23 Failed 11 | . 11 . . Catastrophic 1 | . 1 . . Database Lockouts . | . . . . Manual 13 | . 13 . . Terminals 15 | . 15 . . Fabricators . | . . . . Repair Stations . | . . . . Recycling Units 2 | . 2 . . Scanalyzers . | . . . . Garrison Access . | . . . . Terminal Hacks 26 | . 3 . 23 Record 15 | . . . 15 Robot Analysis 8 | . 1 . 7 Reprogram Traps 1 | . 1 . . Zone Layout 1 | . 1 . . Proto ID Catalog 1 | . . . 1 Fabricator Hacks . | . . . . Repair Station Hacks . | . . . . Recycling Unit Hacks . | . . . . Scanalyzer . | . . . . Garrison Access Hacks . | . . . . Unauthorized Hacks 3 | . 3 . . Terminals 3 | . 3 . . Botnet 3 | . 3 . . Fabricators . | . . . . Repair Stations . | . . . . Recycling Units . | . . . . Scanalyzers . | . . . . Garrison Access . | . . . . Data Cores Recovered 1 | . 1 . . Used . | . . . . Hacking Detections 5 | . 5 . . Full Trace Events 1 | . 1 . . Feedback Events . | . . . . Feedback Blocked . | . . . . Robot Schematics Acquired . | . . . . Robots Built . | . . . . Authchips . | . . . . Time . | . . . . Total Robot Build Rating . | . . . . Part Schematics Acquired . | . . . . Parts Built . | . . . . Authchips . | . . . . Time . | . . . . Total Part Build Rating . | . . . . Parts Repaired . | . . . . Time . | . . . . Parts Recycled . | . . . . Recycled Matter . | . . . . Retrieved Matter . | . . . . Retrieved Components . | . . . . Parts Scanalyzed . | . . . . Part Schematics Acquired . | . . . . Parts Damaged . | . . . . Bothacking | -11 -10 -10 -9 ------------ Run | Yrd Mat Sub Scr Used RIF Installer . | . . . . Robots Hacked . | . . . . Non-combat . | . . . . Combat . | . . . . Robot Hacks Applied . | . . . . Relay Couplers Released . | . . . . Fabnet Peak Effective % . | . . . . Robots Rewired . | . . . . Allies Hacked . | . . . . Hacks Repelled . | . . . . Allies | -11 -10 -10 -9 -------- Run | Yrd Mat Sub Scr Total Allies . | . . . . Largest Group . | . . . . Highest-Rated Group . | . . . . Highest-Rated Ally . | . . . . Total Orders . | . . . . Ally Attacks . | . . . . Total Damage . | . . . . Kills . | . . . . Allies Corrupted . | . . . . Allies Melted 2 | . . . 2 Intel | -11 -10 -10 -9 ------- Run | Yrd Mat Sub Scr Active Infowar (turns) 717 | 58 659 . . Seismic 717 | 58 659 . . Robot Analysis Total 8 | . 1 . 7 Derelict Logs Recovered 3 | . . 1 2 Drone Launches . | . . . . Drone Recoveries . | . . . . Exploration | -11 -10 -10 -9 ------------- Run | Yrd Mat Sub Scr Turns Passed 5696 | 124 1227 768 3577 Spaces Moved 2576 | 72 494 347 1663 Core 26 | 23 . . 3 Treads 1367 | 49 494 347 477 Legs . | . . . . Wheels 720 | . . . 720 Hover . | . . . . Flight 463 | . . . 463 Fastest Speed 37 | 50 160 160 37 Average Speed 177 | 124 160 168 187 Slowest Speed 550 | 160 160 240 550 Overloaded Moves . | . . . . Propulsion Burnouts . | . . . . Robots Hopped . | . . . . Potential Cave-ins . | . . . . Cave-ins Triggered . | . . . . Exploration Rate (%) 44 | 5 70 15 88 Regions Visited 3 Branch Regions 2 Pre-discovered Areas 2 | . . 2 . Known Exits Taken . | . . . . Unknown Exits Taken 3 | 1 1 1 . Scrap Searched 11 | . . . 11 Spaces Dug . | . . . . Terrain Destroyed . | . . . . Melee . | . . . . Projectile . | . . . . AOE . | . . . . Terrain Rammed . | . . . . Walls Destroyed . | . . . . Machines Disabled . | . . . . Actions | -11 -10 -10 -9 --------- Run | Yrd Mat Sub Scr Total 3503 | 93 859 426 2125 Wait 722 | . 308 28 386 Move 2573 | 71 493 346 1663 Hop . | . . . . Pick Up 40 | 8 8 3 21 Fast Attach 12 | 2 3 . 7 Attach 9 | 5 1 1 2 Detach 3 | . . . 3 Swap 11 | . 3 2 6 Drop 35 | . 4 1 30 Fire 96 | 7 39 45 5 Melee 1 | . . . 1 Ram . | . . . . Kick . | . . . . Crush . | . . . . Escape Stasis . | . . . . Rewire . | . . . . Trap 1 | . . . 1 Miscellaneous . | . . . . Route ------- -11/Scrapyard -10/Materials (discovered 3 exits: [*Mat x2] / [*Sub]) -10/Subcaves -9/Scraptown (discovered 1 exit: [*Fac]) History --------- Turn | Location | Event 5 | -11/Scrapyard | Discovered new exit (range 16) 125 | -11/Scrapyard | Entered Materials 316 | -10/Materials | Build established: Mutant 416 | -10/Materials | Discovered new exit (range 14) 1068 | -10/Materials | Discovered new exit (range 7) 1336 | -10/Materials | Discovered new exit (range 11) 1352 | -10/Materials | Entered Subcaves 1353 | -10/Subcaves | Approached by a straggling Scientist 1354 | -10/Subcaves | Scientist uncovered a shortcut to Scraptown 1437 | -10/Subcaves | Learned location of Zion (-6) 1437 | -10/Subcaves | Met a Zionite searching for "candidates" 1580 | -10/Subcaves | A swath of the cavern ceiling suddenly collapsed 2120 | -10/Subcaves | Entered Scraptown 2154 | -9/Scraptown | Build established: Scavenger-Mutant 2483 | -9/Scraptown | Build established: Mutant 2598 | -9/Scraptown | Scanned Subdweller tech in exchange for log data 2602 | -9/Scraptown | Learned location of 1 exit from Factory 2616 | -9/Scraptown | Discovered new exit (range 13) 2717 | -9/Scraptown | Visited The Evicted 2749 | -9/Scraptown | Visited Spacefarers 3030 | -9/Scraptown | Visited Assassins FH 3044 | -9/Scraptown | Heard Great Nut preacher, LISTEN AND RECITE! 3067 | -9/Scraptown | Visited Cyclists 3124 | -9/Scraptown | Visited UFD Registry 3134 | -9/Scraptown | Visited Bundlers 3242 | -9/Scraptown | Visited IN-MT5's Study 3259 | -9/Scraptown | Visited Fellowship of the Rings 3284 | -9/Scraptown | Registered with UFD as "Autoeater" 3318 | -9/Scraptown | Visited Scrap Suit Storage 3324 | -9/Scraptown | Found Scrap Suit 3348 | -9/Scraptown | Visited Analyses Database 3383 | -9/Scraptown | Visited DA-N13 Charitable Foundation 3395 | -9/Scraptown | Found DCF Scrap (29 items) 3692 | -9/Scraptown | Visited Curators Association 3727 | -9/Scraptown | Visited Research Penetration Think Tank 3824 | -9/Scraptown | Visited Science Testing Area 3864 | -9/Scraptown | Visited Science Guys 3984 | -9/Scraptown | Visited Junk Repository 4069 | -9/Scraptown | Visited LU-1G1's Boring Crew 5148 | -9/Scraptown | Warned about trapping Scraptown 5192 | -9/Scraptown | Met Optimus 5192 | -9/Scraptown | Accepted into 0bPrime 5592 | -9/Scraptown | Civil war broke out across Scraptown 5625 | -9/Scraptown | Found Voltaic Drivehammer 5645 | -9/Scraptown | Core integrity fell below 50% 5660 | -9/Scraptown | Lost 6 allies 5676 | -9/Scraptown | Core integrity fell below 20% 5697 | -9/Scraptown | Destroyed by QK-OJM(j) with Overtuned Pulse Rifle Last Messages --------------- 05617_ Machine disabled. 05618_ 2T-PBP(x) destroyed. 05618_ Slug penetrates Machine. 05622_ Machine disabled. 05625_ Acquired Voltaic Drivehammer. 05627_ Dropped Shield Generator. 05649_ Machine disabled. 05653_ QK-OJM(j): "I knew Optimus was a traitor." 05667_ Xenon Bombardment Thruster destroyed. 05675_ Critical hit (Burn: +50). 05678_ 8V-YNJ(j) knocked back. 05687_ 8V-YNJ(j) Lgt. Deuterium Engine blasted off. 05687_ 8V-YNJ(j) destroyed. 05689_ S4-Z5E(M): "How are there so many of them? Surely our efforts have been convincing enough throughout recent cycles." 05695_ QK-OJM(j) knocked back. Map ----- +----------------------------------------------------+ | ?????????????????????????????????????????????????? | | ?????????????????????????????????????????????????? | | ?????????????????????????????????????????????????? | | ?????????????????????????????????????????????????? | | ?????????????????????????????????????????????????? | | ?????????????????????????????????????????????????? | | ?????????????????????????????????????????????????? | | ??????????????????????????? ????????????????????? | | ??????????????????????????? ????????????????????? | | ??????????????????????????? ????????????????????? | | ??????????????????????????# #############???????? | | ###???????????????????????# #"""""""""""#???????? | | # #???????????????????????# #""""" X """#???????? | | # #???????????????????????# #""" """"#???????? | | # #???????????????????????# #" !""#???????? | | # #???????????????????"???# #""" """"#???????? | | #???########??????"" "?# #"""" ""#???????? | | # ##??#]! # ]#?????""""""?# #"" #???????? | | # ## ?# =!# !#???? """ ?# #"" " "*#???????? | | # ## # #] #???? "?# #"" " " #???????? | | # ## #????? ??# # ^ "#???????? | | ## #??????"""???# %#" #???????? | | ######### ####??????# #???# ## ##########???????? | | ######### ########### #####! ##%############?????? | | """"""""" """"""""""" """""%*"=%"## #?????? | | @ [j!*%"## #?????? | | [ ## #?????? | | % "## #?????? | | = "## #?????? | | [%! #?????? | | """""""""""""""""""""""""""= ## #?????? | | """"""""""""""""""""""""""" ## #?????? | | "###### ################"" * ## #?????? | | "# ##????????#"" !%/ "###########?????? | | "# X"#????????#"" = "##"""""""#??????? | | "# "" "" ##????????#"" "## """"""#??????? | | "# "" "" X"#??????###"" "## ""#??????? | | "# " " ######### #"" ## ""#??????? | | " "" % ""#??????? | | " "" "## * "#??????? | | "# " " ######### #"" "## ""#??????? | | "# "" "" ""#??????###"" "## " """"#??????? | | "# "" "" ##????????#"" "##########??????? | | "# X"#????????#"" "#??###"###??????? | | "# ##????????#"" "#??"!" "]" ?????? | | "###### ################"" "#? """ """ ###??? | | """"""""""""""""""""""""""" "## "#??? | | """"""""""""""""""""""""""" ""#???? | | "## "]#???? | | "#? ""#???? | +----------------------------------------------------+ Best States ------------- Heat Dissipation 25 Energy Generation 14 Energy Capacity 250 Matter Stores 300 Matter Capacity 300 Sight Range 16 Terrain Scan Density 10 Evasion (%) 62 Recoil Reduction 2 Offensive Hacking 10 Item Schematics ----------------- None Robot Schematics ------------------ None Fabricated ------------ Nothing Repaired ---------- Nothing Alien Tech Used ----------------- None Achievements -------------- None Challenges ------------ None Game ------ Seed MediumTransportDeconstructor Manual? 0 Play Time 00:29:24 Cumulative 108.5 hours Start 2025.08.17 @ 15:12:56 End 2025.08.17 @ 15:40:52 Sessions 1 Manual Loads 0 Difficulty Rogue Special Mode None Game No. 86 Rogue 86 Adventurer 0 Explorer 0 Win Type - Total 0 Types 0/0/0/0/0/0/0/0/0/0 Lore% 62 Gallery% 51 Achievement% 44 Wizard Run 0 Options --------- Layout 1 ASCII 0 Keyboard 0 Movement Mouse Keybinds 0 Fullscreen 1 Font 24/Smallcaps Map View 50x35 Zoom Use 0% Tactical HUD 1 Map Filters NONE Filters NONE Steam 1 RUN: 1c776785-e85f-42c3-8f40-911e8b200e28